bitfinex/quotes_BTCUSD_20250723
["timestamp","ask_amount","ask_price","bid_price","bid_amount"]
[1753272326144,0.232,118640.0,118630.0,0.66108716]
[1753272326356,0.24042822,118640.0,118630.0,0.66108716]
[1753272326976,0.232,118640.0,118630.0,0.66108716]
[1753272327628,0.232,118640.0,118630.0,0.94543851]
[1753272328051,0.232,118640.0,118630.0,1.02991581]
[1753272330248,0.082,118640.0,118630.0,1.02991581]
[1753272330453,0.232,118640.0,118630.0,1.24433851]
[1753272330688,0.24042829,118640.0,118630.0,1.24433851]
[1753272330879,0.24885665,118640.0,118630.0,0.95998716]
[1753272331287,0.25728515,118640.0,118630.0,0.95998716]
[1753272331499,0.24885665,118640.0,118630.0,0.95998716]
[1753272331707,0.24042829,118640.0,118630.0,0.95830111]
[1753272331853,0.24042822,118640.0,118630.0,0.95830111]
[1753272332715,0.24885658,118640.0,118630.0,0.95830111]
[1753272332926,0.25728487,118640.0,118630.0,0.95830111]
[1753272333882,0.26571344,118640.0,118630.0,0.95830111]
[1753272334102,0.26571337,118640.0,118630.0,0.95830111]
[1753272334551,0.25728487,118640.0,118630.0,0.95830111]
[1753272334857,0.24042822,118640.0,118630.0,0.95830111]
[1753272335063,0.24042829,118640.0,118630.0,0.95830111]
[1753272335235,0.24885651,118640.0,118630.0,0.95830111]
[1753272335678,0.24042822,118640.0,118630.0,0.95830111]
[1753272336120,0.232,118640.0,118630.0,0.95830111]
[1753272336346,0.24042829,118640.0,118630.0,0.95830111]
[1753272337064,0.24885672,118640.0,118630.0,0.95830111]
[1753272337892,0.24042829,118640.0,118630.0,0.95830111]
[1753272338826,0.24885672,118640.0,118630.0,0.95830111]
[1753272339698,0.25728529,118640.0,118630.0,0.95830111]
[1753272339913,0.25728536,118640.0,118630.0,0.95830111]
[1753272340464,0.25728529,118640.0,118630.0,0.95830111]
[1753272340690,0.24885672,118640.0,118630.0,0.95830111]
[1753272341158,0.24885672,118640.0,118630.0,0.99375841]
[1753272341560,0.25728529,118640.0,118630.0,0.99375841]
[1753272342068,0.265714,118640.0,118630.0,0.99375841]
[1753272342286,0.25728529,118640.0,118630.0,0.99375841]
[1753272343144,0.42586249,118640.0,118630.0,0.96117955]
[1753272343346,0.51184057,118640.0,118630.0,0.92420963]
[1753272343547,0.685212,118640.0,118630.0,0.74718865]
[1753272343720,5.886152,118640.0,118630.0,0.74718865]
[1753272344137,5.886152,118640.0,118630.0,0.44828865]
[1753272344933,5.886152,118640.0,118630.0,0.12848]
[1753272345142,0.16860563,118620.0,118610.0,0.20287928]
[1753272345362,0.80458293,118620.0,118610.0,0.65116793]
[1753272345570,0.81301285,118620.0,118610.0,0.82821876]
[1753272345784,0.41301285,118620.0,118610.0,0.83664953]
[1753272346364,0.81301285,118620.0,118610.0,0.83664953]
[1753272346513,0.81301285,118620.0,118610.0,0.83976953]
[1753272346717,0.81301285,118620.0,118610.0,0.84076953]
[1753272347189,0.81301285,118620.0,118610.0,0.5303918]
[1753272347411,0.81301285,118620.0,118610.0,0.81480137]
[1753272348727,0.81301285,118620.0,118610.0,0.82323207]
[1753272351530,0.80458293,118620.0,118610.0,0.81480137]
[1753272352187,0.80458293,118620.0,118610.0,0.8063706]
[1753272352475,0.80458293,118620.0,118610.0,0.6039306]
[1753272352816,0.80458293,118620.0,118610.0,0.61236145]
[1753272353010,0.80458293,118620.0,118610.0,0.62079222]
[1753272353254,0.80458293,118620.0,118610.0,0.62922292]
[1753272353939,0.80458293,118620.0,118610.0,0.62079222]
[1753272354100,0.80458293,118620.0,118610.0,0.61236145]
[1753272354676,0.80458293,118620.0,118610.0,0.60924145]
[1753272355307,0.80458293,118620.0,118610.0,0.41532885]
[1753272355534,0.82068293,118620.0,118610.0,0.41532885]
[1753272356324,0.80458293,118620.0,118610.0,0.6008106]
[1753272356526,0.40458293,118620.0,118610.0,0.5998106]
[1753272356673,0.40458293,118620.0,118610.0,0.5988106]
[1753272357068,0.80658293,118620.0,118610.0,0.5988106]
[1753272357432,0.80658293,118620.0,118610.0,0.59037968]
[1753272357666,0.80658293,118620.0,118610.0,0.42175984]
[1753272357792,0.80658293,118620.0,118610.0,0.59037968]
[1753272359338,0.80658293,118620.0,118610.0,0.31440103]
[1753272359544,0.80658293,118620.0,118610.0,0.5988106]
[1753272359905,0.81501321,118620.0,118610.0,0.5988106]
[1753272360110,0.81501321,118620.0,118610.0,0.61031137]
[1753272360520,0.81501321,118620.0,118610.0,0.62075207]
[1753272360726,0.81501321,118620.0,118610.0,0.62070964]
[1753272360935,0.81351321,118620.0,118610.0,0.63650964]
[1753272361168,0.66176734,118620.0,118610.0,0.64494013]
[1753272363065,0.65333721,118620.0,118610.0,0.64494013]
[1753272363282,0.66176671,118620.0,118610.0,0.66034013]
[1753272363929,0.65333672,118620.0,118610.0,0.66034013]
[1753272364111,0.66176671,118620.0,118610.0,0.66034013]
[1753272364320,0.27019684,118620.0,118610.0,0.66034013]
[1753272365331,0.26176671,118620.0,118610.0,0.66034013]
[1753272365568,0.27019677,118620.0,118610.0,0.66034013]
[1753272365814,0.44723253,118620.0,118610.0,0.66034013]
[1753272365981,0.4472331,118620.0,118610.0,0.64494013]
[1753272366204,0.27862747,118620.0,118610.0,0.64494013]
[1753272367257,0.4472331,118620.0,118610.0,0.63650964]
[1753272367485,0.43880332,118620.0,118610.0,0.64494027]
[1753272367700,0.44030332,118620.0,118610.0,0.64494027]
[1753272368161,0.44030332,118620.0,118610.0,0.64493984]
[1753272369224,0.25483735,118620.0,118610.0,0.64493941]
[1753272369401,0.25333735,118620.0,118610.0,0.64493941]
[1753272369535,0.25333707,118620.0,118610.0,0.64493941]
[1753272369749,0.2617672,118620.0,118610.0,0.64493941]
[1753272369955,0.2617672,118620.0,118610.0,0.66053941]
[1753272370154,0.25333707,118620.0,118610.0,0.66053941]
[1753272370556,0.253337,118620.0,118610.0,0.66053941]
[1753272371360,0.26176706,118620.0,118610.0,0.66053941]
[1753272371571,0.26176699,118620.0,118610.0,0.66053941]
[1753272373285,0.27019712,118620.0,118610.0,1.01599056]
[1753272373884,0.26176699,118620.0,118610.0,1.01599056]
[1753272374113,0.26176692,118620.0,118610.0,1.01599056]
[1753272375921,0.27019705,118620.0,118610.0,1.01599056]
[1753272376323,0.26176692,118620.0,118610.0,1.01599056]
[1753272378755,0.27019698,118620.0,118610.0,1.01599056]
[1753272379637,0.27862711,118620.0,118610.0,1.01599056]
[1753272380036,0.27862711,118620.0,118610.0,0.88751056]
[1753272380237,0.27862711,118620.0,118610.0,1.01595056]
[1753272380438,0.27862711,118620.0,118610.0,0.88751056]
[1753272380639,0.27862711,118620.0,118610.0,1.01595056]
[1753272380947,0.27019698,118620.0,118610.0,1.01595056]
[1753272381110,0.34176692,118620.0,118610.0,1.01595056]
[1753272382529,0.35019705,118620.0,118610.0,1.01595056]
[1753272382683,0.34176692,118620.0,118610.0,1.01595056]
[1753272384792,0.33333693,118620.0,118610.0,1.01595056]
[1753272385000,0.32490701,118620.0,118610.0,1.01595056]
[1753272385202,0.32490694,118620.0,118610.0,1.01595056]
[1753272385866,0.33333665,118620.0,118610.0,1.01595056]
[1753272386089,0.7417665,118620.0,118610.0,1.01595056]
[1753272388203,0.73333665,118620.0,118610.0,1.01595056]
[1753272388511,0.74176643,118620.0,118610.0,1.01595056]
[1753272389465,0.75019635,118620.0,118610.0,1.01595056]
[1753272391185,0.75862648,118620.0,118610.0,1.01595056]
[1753272391409,0.75862648,118620.0,118610.0,1.00035056]
[1753272391833,0.75862641,118620.0,118610.0,1.00035056]
[1753272392559,0.75019635,118620.0,118610.0,1.00035056]
[1753272392772,0.75862634,118620.0,118610.0,1.00035056]
[1753272392955,0.75862683,118620.0,118610.0,1.00035056]
[1753272393807,0.92723246,118620.0,118610.0,0.99192007]
[1753272394066,0.52723303,118620.0,118610.0,0.9834898]
[1753272394269,0.52873303,118620.0,118610.0,0.97612036]
[1753272394477,0.52030325,118620.0,118610.0,0.64775944]
[1753272394732,0.51187333,118620.0,118610.0,0.64775966]
[1753272395260,0.51187333,118620.0,118610.0,0.64574966]
[1753272395963,0.51187333,118620.0,118610.0,0.65418036]
[1753272396166,0.51187333,118620.0,118610.0,0.66261099]
[1753272397151,0.51187333,118620.0,118610.0,0.65954099]
[1753272397359,0.51844334,118620.0,118610.0,0.65111036]
[1753272397760,0.50344334,118620.0,118610.0,0.65111036]
[1753272398525,0.50344334,118620.0,118610.0,0.62581804]
[1753272398745,0.48658293,118620.0,118610.0,0.44876721]
[1753272399158,0.51928293,118620.0,118610.0,0.32032721]
[1753272399376,0.51928293,118620.0,118610.0,0.44872721]
[1753272399554,0.51928293,118620.0,118610.0,0.62577804]
[1753272400828,0.50298293,118620.0,118610.0,0.12879685]
[1753272401054,0.54542645,118620.0,118610.0,0.44872721]
[1753272401229,5.56902293,118620.0,118610.0,0.44872721]
[1753272401432,5.56902293,118620.0,118610.0,0.12879685]
[1753272401866,5.56902293,118620.0,118610.0,0.44872721]
[1753272403354,6.22895329,118620.0,118610.0,0.12879685]
[1753272403599,6.22895329,118620.0,118610.0,0.00039685]
[1753272403812,6.37315283,118620.0,118610.0,0.12879685]
[1753272404061,5.92482247,118620.0,118610.0,0.32032721]
[1753272404281,5.92388247,118620.0,118610.0,0.44872721]
[1753272404699,5.90608293,118620.0,118610.0,0.44872721]
[1753272405165,5.91008293,118620.0,118610.0,0.44872721]
[1753272406309,5.91102293,118620.0,118610.0,0.32032721]
[1753272406516,5.91102293,118620.0,118610.0,0.44872721]
[1753272406731,5.91102293,118620.0,118610.0,0.12879685]
[1753272406946,5.91102293,118620.0,118610.0,0.44872721]
[1753272407371,5.91102293,118620.0,118610.0,0.12879685]
[1753272407556,5.91102293,118620.0,118610.0,0.44872721]
[1753272408656,5.91102293,118620.0,118610.0,0.12879685]
[1753272408859,5.91102293,118620.0,118610.0,0.44872721]
[1753272409409,5.91102293,118620.0,118610.0,0.12879685]
[1753272419330,5.91008293,118620.0,118610.0,0.41329763]
[1753272419547,6.02708293,118620.0,118610.0,0.44978763]
[1753272419970,5.68708293,118620.0,118610.0,0.61840747]
[1753272420195,0.47690722,118620.0,118610.0,0.64369958]
[1753272420404,0.66237319,118620.0,118610.0,0.64369958]
[1753272420618,0.49376756,118620.0,118610.0,0.64369958]
[1753272421047,0.6708029,118620.0,118610.0,0.63526909]
[1753272421253,0.66237319,118620.0,118610.0,0.63526909]
[1753272422570,0.65394327,118620.0,118610.0,0.63526924]
[1753272422812,0.65394327,118620.0,118610.0,0.35076846]
[1753272423041,0.65394327,118620.0,118610.0,0.63526924]
[1753272423559,0.64551321,118620.0,118610.0,0.63526924]
[1753272424206,0.64551321,118620.0,118610.0,0.62683846]
[1753272424835,0.64551321,118620.0,118610.0,0.63526938]
[1753272426330,0.63708293,118620.0,118610.0,0.44974763]
[1753272426603,0.63708293,118620.0,118610.0,0.16524685]
[1753272426807,0.63708293,118620.0,118610.0,0.44974763]
[1753272430694,0.63708293,118620.0,118610.0,0.16524685]
[1753272430903,0.63708293,118620.0,118610.0,0.44974763]
[1753272431316,0.63708293,118620.0,118610.0,0.48521342]
[1753272432126,0.63708293,118620.0,118610.0,0.16524685]
[1753272432344,0.63708293,118620.0,118610.0,0.48521342]
[1753272436225,0.63708293,118620.0,118610.0,0.35685342]
[1753272436371,0.63708293,118620.0,118610.0,0.48521342]
[1753272436562,0.63708293,118620.0,118610.0,0.35685342]
[1753272436779,0.63708293,118620.0,118610.0,0.48521342]
[1753272437338,0.63708293,118620.0,118610.0,0.65383326]
[1753272437653,0.63708293,118620.0,118610.0,0.48521342]
[1753272437788,0.63708293,118620.0,118610.0,0.66226425]
[1753272438589,0.63708293,118620.0,118610.0,0.81361098]
[1753272438804,0.63708293,118620.0,118610.0,0.80517999]
[1753272439020,0.63708293,118620.0,118610.0,0.48521342]
[1753272441996,0.63708293,118620.0,118610.0,0.66226425]
[1753272442970,0.63703235,118620.0,118610.0,0.48521342]
[1753272458275,0.63703235,118620.0,118610.0,0.16524685]
[1753272458487,0.63703235,118620.0,118610.0,0.48521342]
[1753272463553,1.03703235,118620.0,118610.0,0.48521342]
[1753272465510,1.03703235,118620.0,118610.0,0.46911342]
[1753272467934,1.03703235,118620.0,118610.0,0.14914685]
[1753272468141,1.03703235,118620.0,118610.0,0.46911342]
[1753272470749,1.03703235,118620.0,118610.0,0.14914685]
[1753272471001,1.03703235,118620.0,118610.0,0.46911342]
[1753272475524,1.03853235,118620.0,118610.0,0.45179342]
[1753272475752,1.03853235,118620.0,118610.0,0.13182685]
[1753272475930,6.12133235,118620.0,118610.0,0.00039685]
[1753272476177,6.04223892,118620.0,118610.0,0.12871685]
[1753272477201,5.72227235,118620.0,118610.0,0.00039685]
[1753272477366,5.72227235,118620.0,118610.0,0.12871685]
[1753272478184,6.38223892,118620.0,118610.0,0.12871685]
[1753272478389,6.39804671,118620.0,118610.0,0.12871685]
[1753272479461,6.07807466,118620.0,118610.0,0.12871685]
[1753272479999,6.45594635,118620.0,118610.0,0.12871685]
[1753272480415,6.13597978,118620.0,118610.0,0.12871685]
[1753272481768,6.60594635,118620.0,118610.0,0.12871685]
[1753272482384,6.28597978,118620.0,118610.0,0.12871685]
[1753272483032,6.60594635,118620.0,118610.0,0.12871685]
[1753272483663,6.28597978,118620.0,118610.0,0.12871685]
[1753272487019,6.25863626,118620.0,118610.0,0.12871685]
[1753272488105,6.22807466,118620.0,118610.0,0.44868342]
[1753272489804,6.22807466,118620.0,118610.0,0.12871685]
[1753272491554,6.22807466,118620.0,118610.0,0.00039685]
[1753272491787,6.73426635,118620.0,118610.0,0.00039685]
[1753272493609,6.73226635,118620.0,118610.0,0.00039685]
[1753272493847,6.7352339,118620.0,118610.0,0.00039685]
[1753272494294,6.7332339,118620.0,118610.0,0.00039685]
[1753272494794,6.41326733,118620.0,118610.0,0.00039685]
[1753272495005,6.38792381,118620.0,118610.0,0.00039685]
[1753272495231,6.70789038,118620.0,118610.0,0.00039685]
[1753272496137,6.38792381,118620.0,118610.0,0.00039685]
[1753272496323,6.70789038,118620.0,118610.0,0.00039685]
[1753272496605,1.6578863,118620.0,118610.0,0.00039685]
[1753272496834,6.7078863,118620.0,118610.0,0.00039685]
[1753272498229,6.7078863,118620.0,118610.0,0.00035436]
[1753272499406,6.73522982,118620.0,118610.0,0.00035436]
[1753272501277,6.76056682,118620.0,118610.0,0.00035436]
[1753272503073,6.76039821,118620.0,118610.0,0.00035436]
[1753272503282,6.76043821,118620.0,118610.0,0.00035436]
[1753272503916,6.44047164,118620.0,118610.0,0.00035436]
[1753272504042,6.76043821,118620.0,118610.0,0.00035436]
[1753272505090,6.44047164,118620.0,118610.0,0.00035436]
[1753272505504,6.76043821,118620.0,118610.0,0.00035436]
[1753272506182,6.44047164,118620.0,118610.0,0.00035436]
[1753272506391,6.73510121,118620.0,118610.0,0.00035436]
[1753272507009,6.76043821,118620.0,118610.0,0.00035436]
[1753272507213,6.44047164,118620.0,118610.0,0.00035436]
[1753272507459,6.73510121,118620.0,118610.0,0.00035436]
[1753272508132,6.41513464,118620.0,118610.0,0.00035436]
[1753272508319,6.73510121,118620.0,118610.0,0.00035436]
[1753272509189,6.41513464,118620.0,118610.0,0.00035436]
[1753272509377,6.73510121,118620.0,118610.0,0.00035436]
[1753272511112,6.73416121,118620.0,118610.0,0.00035436]
[1753272511305,6.73418039,118620.0,118610.0,0.00035436]
[1753272512143,6.25305382,118620.0,118610.0,0.00035436]
[1753272512346,6.70138039,118620.0,118610.0,0.00035436]
[1753272512764,6.71788039,118620.0,118610.0,0.00035436]
[1753272513176,6.39791382,118620.0,118610.0,0.00035436]
[1753272513381,1.66788039,118620.0,118610.0,0.00035436]
[1753272513553,6.71788039,118620.0,118610.0,0.00035436]
[1753272514168,6.73512039,118620.0,118610.0,0.00035436]
[1753272515022,6.71882039,118620.0,118610.0,0.00035436]
[1753272515241,6.71788039,118620.0,118610.0,0.00035436]
[1753272515884,6.39791382,118620.0,118610.0,0.00035436]
[1753272516118,6.38141382,118620.0,118610.0,0.00035436]
[1753272516311,6.70138039,118620.0,118610.0,0.00035436]
[1753272516986,6.38141382,118620.0,118610.0,0.00035436]
[1753272517198,6.70138039,118620.0,118610.0,0.00035436]
[1753272518184,6.38141382,118620.0,118610.0,0.00035436]
[1753272518397,6.70138039,118620.0,118610.0,0.00035436]
[1753272518857,6.38141382,118620.0,118610.0,0.00035436]
[1753272519066,6.70138039,118620.0,118610.0,0.00035436]
[1753272520019,6.71788039,118620.0,118610.0,0.00035436]
[1753272520218,6.39799382,118620.0,118610.0,0.00035436]
[1753272520485,6.71796039,118620.0,118610.0,0.00035436]
[1753272521009,6.70146039,118620.0,118610.0,0.00035436]
[1753272522298,6.38149382,118620.0,118610.0,0.00035436]
[1753272522508,6.70738373,118620.0,118610.0,0.00035436]
[1753272522752,6.70146039,118620.0,118610.0,0.00035436]
[1753272523166,6.70147129,118620.0,118610.0,0.00035436]
[1753272523380,6.70739482,118620.0,118610.0,0.00035436]
[1753272524246,6.38742825,118620.0,118610.0,0.00035436]
[1753272524458,6.70739482,118620.0,118610.0,0.00035436]
[1753272525975,6.70147129,118620.0,118610.0,0.00035436]
[1753272526181,6.70739455,118620.0,118610.0,0.00035436]
[1753272526460,6.38742798,118620.0,118610.0,0.00035436]
[1753272526684,6.70739455,118620.0,118610.0,0.00035436]
[1753272529206,6.70739465,118620.0,118610.0,0.00035436]
[1753272530939,6.38742808,118620.0,118610.0,0.00035436]
[1753272531142,6.70739465,118620.0,118610.0,0.00035436]
[1753272531870,6.38742808,118620.0,118610.0,0.00035436]
[1753272532009,1.65739465,118620.0,118610.0,0.00035436]
[1753272532215,6.70739465,118620.0,118610.0,0.00035436]
[1753272533723,6.38742808,118620.0,118610.0,0.00035436]
[1753272533939,6.70739465,118620.0,118610.0,0.00035436]
[1753272534773,6.38742808,118620.0,118610.0,0.00035436]
[1753272534979,6.70739465,118620.0,118610.0,0.00035436]
[1753272535190,6.70739389,118620.0,118610.0,0.00035436]
[1753272535396,6.38742732,118620.0,118610.0,0.00035436]
[1753272535612,6.70739389,118620.0,118610.0,0.00035436]
[1753272536536,6.70739389,118620.0,118610.0,0.01655436]
[1753272536763,6.70739389,118620.0,118610.0,0.00035436]
[1753272538211,6.70739421,118620.0,118610.0,0.00035436]
[1753272538407,6.38742764,118620.0,118610.0,0.00031187]
[1753272538625,6.70739421,118620.0,118610.0,0.00031187]
[1753272539575,6.38742764,118620.0,118610.0,0.00031187]
[1753272539989,6.70739421,118620.0,118610.0,0.00031187]
[1753272541183,6.70739292,118620.0,118610.0,0.00031187]
[1753272543297,6.70739307,118620.0,118610.0,0.00031187]
[1753272543517,6.70739307,118620.0,118610.0,0.01631187]
[1753272543938,6.3875065,118620.0,118610.0,0.01631187]
[1753272544138,6.70747307,118620.0,118610.0,0.01631187]
[1753272545805,6.3875065,118620.0,118610.0,0.01631187]
[1753272546043,6.70747307,118620.0,118610.0,0.01631187]
[1753272546261,6.70747369,118620.0,118610.0,0.01631187]
[1753272546892,6.38158405,118620.0,118610.0,0.01631187]
[1753272547195,6.70747381,118620.0,118610.0,0.00031187]
[1753272547914,6.38750724,118620.0,118610.0,0.00031187]
[1753272548186,6.70747381,118620.0,118610.0,0.00031187]
[1753272549085,6.70747381,118620.0,118610.0,0.01641187]
[1753272549308,6.38750728,118620.0,118610.0,0.01641187]
[1753272549557,6.70747385,118620.0,118610.0,0.01641187]
[1753272549780,6.38750728,118620.0,118610.0,0.01641187]
[1753272550000,6.70747385,118620.0,118610.0,0.01641187]
[1753272550391,6.57895385,118620.0,118610.0,0.01641187]
[1753272550605,6.70735385,118620.0,118610.0,0.01641187]
[1753272551324,6.38738728,118620.0,118610.0,0.01641187]
[1753272551540,6.70735385,118620.0,118610.0,0.01641187]
[1753272551778,6.38738728,118620.0,118610.0,0.00031187]
[1753272552002,6.70735385,118620.0,118610.0,0.00031187]
[1753272552653,6.64944873,118620.0,118610.0,1e-08]
[1753272552874,6.72235385,118620.0,118610.0,1e-08]
[1753272553109,6.70735409,118620.0,118610.0,1e-08]
[1753272553549,6.38738752,118620.0,118610.0,1e-08]
[1753272553758,6.70735409,118620.0,118610.0,1e-08]
[1753272555799,6.38738752,118620.0,118610.0,1e-08]
[1753272555942,6.72235409,118620.0,118610.0,1e-08]
[1753272556361,6.70735409,118620.0,118610.0,1e-08]
[1753272557261,6.38738752,118620.0,118610.0,1e-08]
[1753272557466,6.70735409,118620.0,118610.0,1e-08]
[1753272557980,6.38738752,118620.0,118610.0,1e-08]
[1753272558328,6.70735409,118620.0,118610.0,1e-08]
[1753272558572,6.70735227,118620.0,118610.0,1e-08]
[1753272559680,6.7310634,118620.0,118610.0,1e-08]
[1753272560113,6.7310634,118620.0,118610.0,0.01640001]
[1753272560690,6.7310634,118620.0,118610.0,1e-08]
[1753272560913,1.6810634,118620.0,118610.0,1e-08]
[1753272561126,6.7310634,118620.0,118610.0,1e-08]
[1753272561776,6.73106227,118620.0,118610.0,1e-08]
[1753272563054,6.4110957,118620.0,118610.0,1e-08]
[1753272563306,6.73106227,118620.0,118610.0,1e-08]
[1753272564085,6.7310625,118620.0,118610.0,1e-08]
[1753272564515,7.06846907,118620.0,118610.0,1e-08]
[1753272564734,7.08386907,118620.0,118610.0,1e-08]
[1753272565400,6.7813625,118620.0,118610.0,1e-08]
[1753272565617,6.7783625,118620.0,118610.0,1e-08]
[1753272565843,6.7803625,118620.0,118610.0,1e-08]
[1753272566038,6.7833625,118620.0,118610.0,1e-08]
[1753272566231,6.7813625,118620.0,118610.0,1e-08]
[1753272566359,6.7843625,118620.0,118610.0,1e-08]
[1753272570567,6.7843576,118620.0,118610.0,1e-08]
[1753272571531,1.7343576,118620.0,118610.0,1e-08]
[1753272571757,6.7843576,118620.0,118610.0,1e-08]
[1753272573498,7.10432417,118620.0,118610.0,1e-08]
[1753272573726,6.7680176,118620.0,118610.0,1e-08]
[1753272574623,7.10502417,118620.0,118610.0,1e-08]
[1753272574844,6.7850576,118620.0,118610.0,1e-08]
[1753272575065,7.10502417,118620.0,118610.0,1e-08]
[1753272575287,7.08923432,118620.0,118610.0,1e-08]
[1753272575507,7.10501812,118620.0,118610.0,1e-08]
[1753272575948,6.78505155,118620.0,118610.0,1e-08]
[1753272577059,6.76801155,118620.0,118610.0,1e-08]
[1753272577301,6.44804498,118620.0,118610.0,1e-08]
[1753272577521,6.76801155,118620.0,118610.0,1e-08]
[1753272577722,6.44804498,118620.0,118610.0,1e-08]
[1753272577932,6.75151155,118620.0,118610.0,1e-08]
[1753272579264,6.75150862,118620.0,118610.0,1e-08]
[1753272580556,6.62310862,118620.0,118610.0,1e-08]
[1753272580765,6.75206862,118620.0,118610.0,1e-08]
[1753272582464,6.43210205,118620.0,118610.0,1e-08]
[1753272582670,6.75206862,118620.0,118610.0,1e-08]
[1753272583309,7.07203519,118620.0,118610.0,1e-08]
[1753272584550,6.43210205,118620.0,118610.0,1e-08]
[1753272584757,7.07203519,118620.0,118610.0,1e-08]
[1753272584961,2.02203519,118620.0,118610.0,1e-08]
[1753272585169,6.43210205,118620.0,118610.0,1e-08]
[1753272585373,7.07203519,118620.0,118610.0,1e-08]
[1753272587607,7.08863519,118620.0,118610.0,1e-08]
[1753272588375,7.08863519,118620.0,118590.0,0.02017]
[1753272588376,0.76863406,118600.0,118590.0,0.02017]
[1753272588584,6.71779329,118600.0,118590.0,0.0202191]
[1753272588785,6.71779329,118600.0,118590.0,0.0004491]
[1753272588786,6.77569841,118600.0,118590.0,0.0004491]
[1753272588998,6.77569841,118600.0,118590.0,0.0197191]
[1753272589424,6.77569841,118600.0,118590.0,0.0216691]
[1753272589746,6.32623184,118600.0,118590.0,0.0216691]
[1753272589959,6.32623184,118600.0,118590.0,0.34163567]
[1753272589960,6.39732672,118600.0,118590.0,0.34163567]
[1753272590156,6.39732672,118600.0,118590.0,0.0216691]
[1753272590380,6.26832672,118600.0,118590.0,0.0216691]
[1753272590846,6.47784672,118600.0,118590.0,0.0216691]
[1753272591006,6.34932672,118600.0,118590.0,0.34163567]
[1753272591203,6.47884672,118600.0,118590.0,0.34163567]
[1753272591426,6.34932672,118600.0,118590.0,0.35813567]
[1753272591640,6.47884672,118600.0,118590.0,0.35813567]
[1753272591853,6.47884672,118600.0,118590.0,0.0381691]
[1753272598359,6.47880672,118600.0,118590.0,0.35813567]
[1753272598580,6.47880672,118600.0,118590.0,0.0381691]
[1753272598994,6.47880672,118600.0,118590.0,0.35813567]
[1753272599458,6.47880672,118600.0,118590.0,0.0381691]
[1753272599681,6.50936832,118600.0,118590.0,0.0381691]
[1753272600325,6.53760825,118600.0,118590.0,0.03812662]
[1753272600559,6.85757482,118600.0,118590.0,0.03812662]
[1753272601218,1.80757482,118600.0,118590.0,0.03812662]
[1753272601435,6.85757482,118600.0,118590.0,0.03812662]
[1753272601682,6.53760825,118600.0,118590.0,0.35809319]
[1753272602118,6.53760825,118600.0,118590.0,0.03812662]
[1753272602361,6.53910825,118600.0,118590.0,0.00040662]
[1753272602807,6.53910825,118600.0,118590.0,0.32037319]
[1753272603017,6.53910825,118600.0,118590.0,0.34048319]
[1753272603245,6.40812825,118600.0,118590.0,0.35548319]
[1753272603467,6.37988832,118600.0,118590.0,0.35548319]
[1753272603687,6.50928832,118600.0,118590.0,0.35548319]
[1753272603949,6.37988832,118600.0,118590.0,0.35548319]
[1753272604230,6.50928832,118600.0,118590.0,0.35548319]
[1753272604458,6.47872672,118600.0,118590.0,0.67544976]
[1753272604670,6.34932672,118600.0,118590.0,0.35548319]
[1753272604915,6.47872672,118600.0,118590.0,0.35548319]
[1753272605318,6.47872672,118600.0,118590.0,0.67544976]
[1753272605525,6.47872672,118600.0,118590.0,0.35548319]
[1753272606400,6.47872672,118600.0,118590.0,0.35480044]
[1753272606586,6.47872672,118600.0,118590.0,0.03483387]
[1753272607001,6.47864672,118600.0,118590.0,0.35480044]
[1753272607283,6.34932672,118600.0,118590.0,0.35480044]
[1753272607527,6.47864672,118600.0,118590.0,0.35480044]
[1753272609554,6.47865285,118600.0,118590.0,0.35480044]
[1753272610211,6.32865285,118600.0,118590.0,0.35383863]
[1753272611294,6.32865285,118600.0,118590.0,0.35308551]
[1753272611726,6.32865285,118600.0,118590.0,0.03311894]
[1753272611938,6.32865285,118600.0,118590.0,0.35308551]
[1753272612147,6.32865392,118600.0,118590.0,0.35308551]
[1753272612349,6.35921552,118600.0,118590.0,0.35308551]
[1753272613568,6.36137552,118600.0,118590.0,0.03311894]
[1753272614651,6.35921552,118600.0,118590.0,0.35308551]
[1753272615178,6.35921552,118600.0,118590.0,0.03311894]
[1753272615433,6.35921552,118600.0,118590.0,0.35308551]
[1753272616237,6.34933392,118600.0,118590.0,0.35308551]
[1753272616471,6.47865392,118600.0,118590.0,0.35308551]
[1753272616709,6.19933392,118600.0,118590.0,0.80237208]
[1753272617166,5.8677654,118600.0,118590.0,0.80237208]
[1753272617410,5.8519744,118600.0,118590.0,0.16243894]
[1753272617644,5.86040603,118600.0,118590.0,0.97945277]
[1753272617863,0.4664773,118600.0,118590.0,1.32471557]
[1753272618119,0.232,118600.0,118590.0,1.34216459]
[1753272618570,0.1988,118600.0,118590.0,1.34216459]
[1753272618797,0.15,118610.0,118600.0,0.23207732]
[1753272619026,0.3,118610.0,118600.0,0.87702046]
[1753272619252,0.3,118610.0,118600.0,0.80576372]
[1753272619509,0.30843035,118610.0,118600.0,0.80576372]
[1753272619735,0.3,118610.0,118600.0,0.80576372]
[1753272620172,0.30843035,118610.0,118600.0,0.80576372]
[1753272620408,0.3,118610.0,118600.0,0.80576372]
[1753272620636,0.3,118610.0,118600.0,0.8481143]
[1753272621093,0.32528941,118620.0,118610.0,0.21471195]
[1753272621329,0.40976671,118620.0,118610.0,0.63160015]
[1753272621551,0.40976671,118620.0,118610.0,0.63454015]
[1753272621774,0.42662698,118620.0,118610.0,0.63454022]
[1753272621990,0.42662762,118620.0,118610.0,0.63454029]
[1753272622207,0.40976713,118620.0,118610.0,0.64297078]
[1753272622737,0.40133707,118620.0,118610.0,0.64297078]
[1753272622999,0.40133707,118620.0,118610.0,0.64297078]
[1753272623229,0.40976678,118620.0,118610.0,0.64297078]
[1753272623473,0.40233679,118620.0,118610.0,0.64297078]
[1753272623713,0.41076664,118620.0,118610.0,0.64297078]
[1753272623941,0.40233672,118620.0,118610.0,0.64297078]
[1753272624166,0.41076664,118620.0,118610.0,0.64297078]
[1753272624422,0.40233672,118620.0,118610.0,0.64297078]
[1753272624845,0.40233672,118620.0,118610.0,0.64397078]
[1753272625668,0.40233672,118620.0,118610.0,0.64297078]
[1753272625886,0.39390694,118620.0,118610.0,0.64597078]
[1753272626098,0.3854773,118620.0,118610.0,0.64597078]
[1753272626542,0.301,118620.0,118610.0,0.7478971]
[1753272627233,0.301,118620.0,118610.0,0.6634198]
[1753272628137,0.301,118620.0,118610.0,0.6604198]
[1753272628586,0.301,118620.0,118610.0,0.6634198]
[1753272629267,0.3,118620.0,118610.0,0.6634198]
[1753272630199,0.15,118620.0,118610.0,0.6634198]
[1753272630412,0.3,118620.0,118610.0,0.7488971]
[1753272632215,0.30842971,118620.0,118610.0,0.6644198]
[1753272632402,0.3,118620.0,118610.0,0.6644198]
[1753272633082,0.30842964,118620.0,118610.0,0.6644198]
[1753272633301,0.3,118620.0,118610.0,0.6644198]
[1753272633522,0.30842964,118620.0,118610.0,0.6644198]
[1753272634054,0.31685942,118620.0,118610.0,0.6644198]
[1753272636260,0.33371933,118620.0,118610.0,0.5339398]
[1753272636480,0.33371926,118620.0,118610.0,0.6643398]